bitfinex-derivatives/quotes_BTCF0:USTF0_20210109
["timestamp","ask_amount","ask_price","bid_price","bid_amount"]
[1610181181035,0.13663387,39658.0,39657.0,0.13654612]
[1610181186842,0.13663387,39658.0,39657.0,4.28384612]
[1610181189645,0.13632608,39658.0,39657.0,4.28384612]
[1610181193848,0.13632608,39658.0,39657.0,4.29403242]
[1610181203761,0.14410641,39658.0,39657.0,4.29403242]
[1610181204161,0.13632608,39658.0,39657.0,4.29403242]
[1610181204562,0.14412039,39658.0,39657.0,4.29403242]
[1610181204962,0.61041474,39658.0,39657.0,4.29403242]
[1610181205463,0.15955642,39658.0,39657.0,4.29403242]
[1610181205763,0.61862882,39658.0,39657.0,4.29403242]
[1610181206266,0.13632608,39658.0,39657.0,4.29403242]
[1610181206965,0.13632608,39658.0,39657.0,4.32326526]
[1610181207866,0.13632608,39658.0,39657.0,4.29403242]
[1610181210668,0.61907492,39658.0,39657.0,4.29403242]
[1610181211071,0.13632608,39658.0,39657.0,4.29403242]
[1610181211270,0.13632608,39658.0,39657.0,4.32326691]
[1610181212073,0.13632608,39658.0,39657.0,0.17596691]
[1610181212272,0.13632608,39658.0,39657.0,0.01040634]
[1610181212472,3.99602608,39658.0,39657.0,0.01040634]
[1610181212674,5.37653225,39658.0,39657.0,0.01040634]
[1610181212873,5.37653225,39658.0,39640.0,0.01041327]
[1610181213072,5.37653225,39658.0,39637.0,0.02924022]
[1610181213073,7.36958829,39658.0,39657.0,0.01041428]
[1610181213272,7.36958829,39658.0,39637.0,0.02924022]
[1610181213273,7.36958829,39658.0,39637.0,0.03965455]
[1610181213473,2.8196131,39658.0,39637.0,0.03965455]
[1610181213672,2.8196131,39658.0,39657.0,0.00022361]
[1610181213873,1.03272774,39644.0,39638.0,0.01041764]
[1610181214076,0.74002608,39639.0,39638.0,0.01019399]
[1610181214275,1.74803242,39639.0,39638.0,0.01019399]
[1610181214473,1.74803242,39639.0,39620.0,0.13632608]
[1610181214673,1.74803242,39639.0,39638.0,0.01042085]
[1610181214874,2.7888707,39639.0,39621.0,0.01042107]
[1610181215174,2.7888707,39639.0,39638.0,0.01042134]
[1610181215375,2.7888707,39639.0,39638.0,0.01019764]
[1610181215575,2.7888707,39639.0,39621.0,0.0104213]
[1610181215776,3.55106637,39639.0,39638.0,0.0002237]
[1610181215976,3.55106637,39639.0,39622.0,0.01042127]
[1610181216176,0.13632608,39623.0,39621.0,0.01019777]
[1610181216376,0.24614608,39623.0,39621.0,0.01019777]
[1610181216577,0.24614608,39623.0,39622.0,0.01042141]
[1610181217076,0.24614608,39623.0,39621.0,0.01042156]
[1610181217276,0.24614608,39623.0,39622.0,0.01042188]
[1610181217876,0.24614608,39623.0,39597.0,0.10256]
[1610181217877,0.24614608,39623.0,39621.0,0.01042184]
[1610181218077,0.24614608,39623.0,39622.0,0.00022371]
[1610181218279,3.86074608,39623.0,39622.0,0.00022371]
[1610181218680,3.86074608,39623.0,39599.0,2.8478]
[1610181218881,3.86074608,39623.0,39579.0,0.02926523]
[1610181218882,0.4788726,39621.0,39600.0,0.01042531]
[1610181219083,3.1751,39601.0,39599.0,0.01020307]
[1610181219281,3.17472064,39601.0,39599.0,0.01020307]
[1610181219480,3.17472064,39601.0,39576.0,0.02927811]
[1610181219681,3.17472064,39601.0,39600.0,0.00022385]
[1610181219882,3.17472064,39601.0,39576.0,0.03970783]
[1610181220282,3.17472064,39601.0,39600.0,0.00022387]
[1610181220483,3.17472064,39601.0,39582.0,0.13632608]
[1610181220684,3.17472064,39601.0,39600.0,0.00022387]
[1610181221084,3.17472064,39601.0,39583.0,0.010431]
[1610181221285,3.17472064,39601.0,39583.0,0.01020713]
[1610181221486,3.17472064,39601.0,39584.0,0.00022388]
[1610181221687,3.17472064,39601.0,39583.0,0.01043101]
[1610181221885,0.09022,39604.0,39583.0,0.01043101]
[1610181222086,0.09022,39604.0,39587.0,3.8288]
[1610181222285,0.09022,39604.0,39603.0,0.13632608]
[1610181222887,0.09022,39604.0,39603.0,0.13654991]
[1610181223285,0.09022,39604.0,39603.0,0.1467522]
[1610181224189,0.13632608,39614.0,39603.0,0.1467522]
[1610181224388,0.13632608,39614.0,39603.0,0.14675031]
[1610181224587,0.13632608,39614.0,39603.0,0.13654984]
[1610181224789,0.13632608,39614.0,39604.0,0.00022376]
[1610181224989,0.5707,39613.0,39604.0,0.00022376]
[1610181226192,0.13632608,39605.0,39604.0,0.00022376]
[1610181226591,0.13632608,39605.0,39602.0,0.13632608]
[1610181226792,0.13632608,39605.0,39603.0,0.00022395]
[1610181227191,2.9412,39604.0,39603.0,0.00022395]
[1610181227592,2.9412,39604.0,39590.0,0.00022395]
[1610181227792,2.9412,39604.0,39603.0,0.00022397]
[1610181227994,2.9412,39604.0,39591.0,0.00022397]
[1610181228194,0.13632608,39592.0,39591.0,0.13655005]
[1610181228396,0.58802608,39592.0,39591.0,0.13632608]
[1610181228794,0.58802608,39592.0,39591.0,0.13655008]
[1610181232198,0.4517,39592.0,39591.0,0.13655008]
[1610181241613,0.4517,39592.0,39591.0,0.000224]
[1610181241813,0.4517,39592.0,39567.0,0.08344]
[1610181242013,3.9167,39578.0,39568.0,0.01026344]
[1610181242213,3.9167,39578.0,39568.0,0.01048728]
[1610181242416,0.13632608,39593.0,39568.0,0.01048728]
[1610181242417,0.11216,39589.0,39575.0,0.13632608]
[1610181242815,0.11216,39589.0,39576.0,0.00022384]
[1610181243015,4.0423,39577.0,39568.0,0.01040177]
[1610181243418,4.0423,39577.0,39576.0,0.00022384]
[1610181243618,4.0423,39577.0,39568.0,0.01040177]
[1610181243817,4.0423,39577.0,39576.0,0.00022384]
[1610181244217,4.0423,39577.0,39569.0,0.00022384]
[1610181244417,4.0423,39577.0,39576.0,0.00022384]
[1610181244617,4.0423,39577.0,39570.0,0.00022386]
[1610181244818,4.0423,39577.0,39576.0,0.00022386]
[1610181245216,4.0423,39577.0,39568.0,0.00022386]
[1610181245417,4.0423,39577.0,39576.0,0.00022386]
[1610181245617,4.0423,39577.0,39569.0,0.00022386]
[1610181245919,4.0423,39577.0,39576.0,0.00022386]
[1610181246318,4.17862608,39577.0,39570.0,0.00022386]
[1610181246518,4.17862608,39577.0,39568.0,0.00022386]
[1610181246719,4.17862608,39577.0,39571.0,0.00022386]
[1610181247120,4.17862608,39577.0,39569.0,0.00022386]
[1610181247321,4.17862608,39577.0,39568.0,0.00022386]
[1610181247522,4.17862608,39577.0,39570.0,0.00022386]
[1610181247720,4.17862608,39577.0,39569.0,0.00022386]
[1610181248022,4.17862608,39577.0,39571.0,0.00022386]
[1610181248221,4.17862608,39577.0,39570.0,0.00022386]
[1610181248521,4.0423,39577.0,39575.0,0.13632608]
[1610181248922,4.0423,39577.0,39576.0,0.00022386]
[1610181250323,4.17862608,39577.0,39576.0,0.00022386]
[1610181250825,0.13632608,39577.0,39576.0,0.00022386]
[1610181251024,0.11021,39581.0,39576.0,0.00022386]
[1610181251225,2.9525,39584.0,39576.0,0.00022386]
[1610181252227,0.11216,39589.0,39577.0,3.1818]
[1610181252427,0.5467,39592.0,39588.0,0.13632608]
[1610181253127,0.5467,39592.0,39567.0,0.1003]
[1610181253329,3.1951,39590.0,39567.0,0.1003]
[1610181253528,3.1951,39590.0,39568.0,0.00022385]
[1610181253728,3.29218,39590.0,39568.0,0.00022385]
[1610181253927,3.29218,39590.0,39563.0,0.0104025]
[1610181254127,3.29218,39590.0,39569.0,0.00022385]
[1610181254329,0.13632608,39570.0,39566.0,0.13632608]
[1610181254928,0.13632608,39570.0,39567.0,0.01040274]
[1610181255130,0.13632608,39570.0,39567.0,0.00022386]
[1610181255332,0.13632608,39570.0,39568.0,0.00022386]
[1610181255628,0.13632608,39570.0,39567.0,0.00022386]
[1610181256028,0.13632608,39570.0,39569.0,0.00022386]
[1610181256228,0.13632608,39570.0,39567.0,0.00022386]
[1610181256429,0.13632608,39570.0,39569.0,0.00022386]
[1610181256828,0.13632608,39570.0,39568.0,0.00022393]
[1610181257029,0.13632608,39570.0,39569.0,0.00022393]
[1610181257629,0.13632608,39570.0,39567.0,0.00022393]
[1610181257832,0.13632608,39570.0,39559.0,0.08191]
[1610181258031,4.0505,39566.0,39546.0,3.0813]
[1610181258431,4.0505,39566.0,39557.0,0.13632608]
[1610181258832,4.0505,39566.0,39558.0,0.00022398]
[1610181260338,0.13632608,39559.0,39558.0,0.00022398]
[1610181262740,0.13632608,39559.0,39557.0,0.13632608]
[1610181263139,0.13632608,39559.0,39558.0,0.00022401]
[1610181263342,0.13632608,39559.0,39558.0,0.00044802]
[1610181263541,0.13632608,39559.0,39558.0,0.00067203]
[1610181264441,0.09132,39564.0,39558.0,0.00067203]
[1610181264842,0.5519,39572.0,39559.0,0.00022398]
[1610181265041,0.5519,39572.0,39570.0,0.13632608]
[1610181265445,0.5519,39572.0,39571.0,0.00022395]
[1610181268749,0.2798,39572.0,39571.0,0.00022395]
[1610181269149,0.2798,39572.0,39571.0,0.01042597]
[1610181270250,3.241,39589.0,39571.0,0.01042597]
[1610181271151,0.13632608,39594.0,39588.0,0.13632608]
[1610181271750,0.2889,39599.0,39588.0,0.13632608]
[1610181271751,0.2889,39599.0,39589.0,0.01042369]
[1610181271951,0.2889,39599.0,39589.0,4.18402369]
[1610181272151,0.00759291,39610.0,39589.0,4.29617369]
[1610181272353,0.02266642,39617.0,39589.0,4.29617369]
[1610181272552,0.02266642,39617.0,39590.0,0.01042092]
[1610181272753,0.60452197,39620.0,39590.0,0.03969266]
[1610181272953,0.31502197,39620.0,39601.0,3.8916]
[1610181273157,0.2923,39620.0,39619.0,0.13632608]
[1610181273556,0.2923,39620.0,39619.0,0.13654986]
[1610181273755,0.2923,39620.0,39619.0,0.14674296]
[1610181273955,0.00765459,39631.0,39619.0,0.14674296]
[1610181274155,0.00765459,39631.0,39619.0,0.13654986]
[1610181274354,0.00766206,39635.0,39620.0,0.00022374]
[1610181274759,0.00767407,39640.0,39620.0,0.00022374]
[1610181275156,0.00767407,39640.0,39639.0,0.13632608]
[1610181275359,0.00767705,39642.0,39639.0,0.13632608]
[1610181275760,0.00768608,39648.0,39642.0,2.9487]
[1610181276157,0.0229277,39652.0,39642.0,2.9487]
[1610181276559,0.00769909,39658.0,39643.0,0.00022357]
[1610181276958,0.00770715,39663.0,39651.0,4.0676]
[1610181277158,0.00770715,39663.0,39662.0,0.13632608]
[1610181277358,0.00772117,39670.0,39662.0,0.13632608]
[1610181277758,0.00772156,39677.0,39663.0,0.00022347]
[1610181278161,0.00772887,39681.0,39673.0,2.927]
[1610181278361,0.00772887,39681.0,39673.0,3.02919]
[1610181278559,0.00772441,39691.0,39674.0,0.0002234]
[1610181278760,0.00772441,39691.0,39673.0,3.02919]
[1610181279161,0.02301876,39697.0,39690.0,0.13632608]
[1610181279360,0.02301876,39697.0,39690.0,0.22572608]
[1610181279562,0.00770447,39705.0,39690.0,3.58252608]
[1610181279960,0.00770433,39709.0,39690.0,3.58252608]
[1610181280160,0.00770433,39709.0,39690.0,0.22572608]
[1610181280361,0.0077033,39712.0,39704.0,3.4441]
[1610181280560,0.0077033,39712.0,39704.0,3.55905]
[1610181280963,0.00768284,39725.0,39704.0,0.11495]
[1610181281161,0.03388553,39731.0,39724.0,0.13632608]
[1610181281361,0.03388553,39731.0,39724.0,0.21528608]
[1610181282562,0.00765296,39759.0,39724.0,0.21528608]
[1610181282962,0.00762517,39762.0,39736.0,3.8587]
[1610181283163,0.02272227,39767.0,39761.0,0.13632608]
[1610181283564,0.02272227,39767.0,39766.0,2.8163]
[1610181283764,0.00759694,39778.0,39766.0,2.8163]
[1610181284165,0.00759573,39784.0,39766.0,2.8163]
[1610181284365,0.00759573,39784.0,39761.0,0.13632608]
[1610181284566,4.0098,39785.0,39761.0,0.13632608]
[1610181284766,0.11779,39784.0,39761.0,0.13632608]
[1610181285166,0.11779,39784.0,39769.0,0.13632608]
[1610181285567,0.11779,39784.0,39770.0,2.8282]
[1610181287167,0.11779,39784.0,39783.0,0.13632608]
[1610181287967,0.11779,39784.0,39760.0,3.9598]
[1610181288167,3.5295,39776.0,39759.0,0.08966]
[1610181288366,0.07657,39776.0,39751.0,0.08592]
[1610181288568,0.07657,39776.0,39667.0,1.5]
[1610181288771,0.07657,39776.0,39740.0,4.095]
[1610181288968,0.07657,39776.0,39740.0,4.18412]
[1610181289168,0.07657,39776.0,39775.0,0.13632608]
[1610181290169,0.11779,39784.0,39775.0,0.13632608]
[1610181290369,0.03344354,39792.0,39775.0,0.13632608]
[1610181291168,0.03344354,39792.0,39773.0,3.4729]
[1610181291371,0.03344354,39792.0,39773.0,3.57745]
[1610181291769,0.03344354,39792.0,39791.0,0.13632608]
[1610181292770,0.10914354,39792.0,39791.0,0.13632608]
[1610181293570,0.03344354,39792.0,39791.0,0.13632608]
[1610181293771,0.16976962,39792.0,39791.0,0.13632608]
[1610181293972,0.16976962,39792.0,39765.0,4.1532]
[1610181294171,0.16976962,39792.0,39755.0,0.11355]
[1610181294370,3.5951,39790.0,39746.0,2.9414]
[1610181295774,0.13632608,39767.0,39764.0,0.13632608]
[1610181295975,0.22527608,39767.0,39653.0,1.5]
[1610181296376,0.2954,39766.0,39724.0,3.3075]
[1610181296577,0.3008,39765.0,39654.0,1.5]
[1610181296978,0.3008,39765.0,39673.0,3.8239]
[1610181297378,0.3008,39765.0,39673.0,3.91117]
[1610181297777,0.3008,39765.0,39761.0,0.13632608]
[1610181298178,0.2954,39766.0,39761.0,0.13632608]
[1610181298578,3.4241,39789.0,39761.0,0.13632608]
[1610181298779,0.2975,39812.0,39761.0,3.71432608]
[1610181299380,0.1556,39811.0,39761.0,3.71432608]
[1610181299583,0.1493,39807.0,39761.0,3.71432608]
[1610181299781,0.1493,39807.0,39782.0,0.13632608]
[1610181299981,0.1556,39811.0,39782.0,0.13632608]
[1610181300181,0.1556,39811.0,39757.0,0.09475]
[1610181300381,0.1556,39791.0,39757.0,0.09475]
[1610181300583,0.2306,39791.0,39757.0,0.09475]
[1610181300782,3.4677,39781.0,39757.0,0.09475]
[1610181300982,3.57681,39781.0,39757.0,0.09475]
[1610181301583,3.57681,39781.0,39740.0,0.07521]
[1610181301784,0.13632608,39761.0,39760.0,0.13632608]
[1610181301984,0.09357,39763.0,39760.0,0.13632608]
[1610181303283,4.1688,39761.0,39740.0,0.07521]
[1610181303483,4.1688,39761.0,39732.0,0.10219]
[1610181303684,4.1688,39761.0,39753.0,0.13632608]
[1610181303884,0.0758,39760.0,39753.0,0.13632608]
[1610181304488,0.09357,39763.0,39753.0,0.13632608]
[1610181305087,0.09357,39763.0,39732.0,0.10219]
[1610181305488,3.3203,39758.0,39712.0,3.084]
[1610181305686,3.3203,39758.0,39740.0,0.13632608]
[1610181306687,0.0756,39757.0,39740.0,0.13632608]
[1610181307089,3.3203,39758.0,39740.0,0.13632608]
[1610181307287,3.3203,39758.0,39723.0,0.09307]
[1610181307488,0.09357,39763.0,39723.0,0.09307]
[1610181307688,3.3962,39738.0,39724.0,0.13632608]
[1610181307889,3.48589,39738.0,39724.0,0.13632608]
[1610181308688,3.48589,39738.0,39715.0,0.09357]
[1610181308889,0.0310334,39737.0,39715.0,0.09357]
[1610181309088,0.1073334,39737.0,39694.0,2.8519]
[1610181309288,0.1073334,39737.0,39630.0,0.1556]
[1610181309492,3.5983,39730.0,39678.0,3.0754]
[1610181309689,0.2885,39729.0,39678.0,3.0754]
[1610181311692,0.2885,39729.0,39723.0,0.13632608]
[1610181311892,3.984,39728.0,39703.0,0.08377]
[1610181312094,0.2885,39729.0,39703.0,0.08377]
[1610181313693,0.2885,39729.0,39728.0,0.13632608]
[1610181319797,0.42482608,39729.0,39728.0,0.13632608]
[1610181319996,0.42482608,39729.0,39711.0,0.10315]
[1610181320197,0.42482608,39729.0,39703.0,0.08377]
[1610181320397,0.2885,39729.0,39703.0,0.08377]
[1610181320597,0.2885,39729.0,39700.0,4.0724]
[1610181321798,3.2224,39736.0,39728.0,0.13632608]
[1610181321999,0.2864,39744.0,39728.0,0.13632608]
[1610181322198,0.13632608,39753.0,39728.0,0.13632608]
[1610181322799,0.03101752,39752.0,39728.0,0.13632608]
[1610181322998,0.06141749,39757.0,39728.0,0.13632608]
[1610181323398,0.06141359,39768.0,39728.0,0.13632608]
[1610181323599,0.06141359,39768.0,39732.0,3.2579]
[1610181323799,0.30340999,39779.0,39767.0,0.13632608]
[1610181324000,0.000307,39768.0,39767.0,0.13632608]
[1610181324199,0.03100665,39768.0,39767.0,0.13632608]
[1610181324399,0.33379929,39779.0,39767.0,0.13632608]
[1610181324400,0.03100382,39778.0,39767.0,0.13632608]
[1610181324601,0.33379929,39779.0,39767.0,0.13632608]
[1610181324802,0.03100149,39777.0,39767.0,0.13632608]
[1610181325103,0.03100069,39778.0,39767.0,0.13632608]
[1610181325502,0.33379929,39779.0,39767.0,0.13632608]
[1610181325503,0.03099984,39776.0,39767.0,0.13632608]
[1610181325700,0.03099981,39778.0,39767.0,0.13632608]
[1610181325900,0.03344354,39792.0,39775.0,0.13632608]
[1610181326501,0.03099179,39791.0,39775.0,0.13632608]
[1610181327100,0.03099179,39791.0,39773.0,0.10927]
[1610181327500,0.03099179,39791.0,39764.0,0.09181]
[1610181327901,0.03099179,39791.0,39767.0,0.13632608]
[1610181328302,0.00030685,39791.0,39767.0,0.13632608]
[1610181328503,0.00030688,39790.0,39767.0,0.13632608]
[1610181329203,0.00030688,39791.0,39767.0,0.13632608]
[1610181329403,0.00030688,39789.0,39767.0,0.13632608]
[1610181329605,2.9703,39785.0,39767.0,0.13632608]
[1610181329804,0.13632608,39775.0,39767.0,0.13632608]
[1610181330004,2.9703,39785.0,39767.0,0.13632608]
[1610181330207,0.0003069,39784.0,39767.0,0.13632608]
[1610181331005,0.0003069,39788.0,39767.0,0.13632608]
[1610181331206,0.00030688,39783.0,39767.0,0.23505608]
[1610181331406,0.00030688,39787.0,39767.0,0.23505608]
[1610181331807,0.00030685,39788.0,39786.0,0.13632608]
[1610181332006,0.11521,39789.0,39786.0,0.13632608]
[1610181333007,0.00030685,39788.0,39767.0,0.09873]
[1610181333808,0.00030685,39788.0,39783.0,0.13632608]
[1610181334207,0.11521,39789.0,39783.0,0.13632608]
[1610181334609,0.03344354,39792.0,39783.0,0.13632608]
[1610181335009,0.03344354,39792.0,39767.0,0.09873]
[1610181335411,0.03344354,39792.0,39755.0,2.985]
[1610181335608,0.03344354,39792.0,39753.0,0.07799]
[1610181335808,0.13632608,39766.0,39763.0,0.13632608]
[1610181338112,0.0915,39775.0,39763.0,0.13632608]
[1610181338316,0.0764,39774.0,39763.0,0.13632608]
[1610181338513,0.0751,39773.0,39763.0,0.13632608]
[1610181339516,0.0915,39775.0,39763.0,0.13632608]
[1610181339918,0.0915,39775.0,39774.0,0.13632608]
[1610181341115,0.03344354,39792.0,39774.0,0.13632608]
[1610181341517,0.04115047,39792.0,39774.0,0.13632608]
[1610181341715,0.04115047,39792.0,39774.0,0.60852608]
[1610181341915,0.03344354,39792.0,39791.0,0.13632608]
[1610181342715,0.03344354,39792.0,39760.0,4.2109]
[1610181343118,0.03344354,39792.0,39761.0,0.00023267]
[1610181343920,0.03344354,39792.0,39789.0,0.13632608]
[1610181344121,0.03344354,39792.0,39761.0,0.00023267]
[1610181344320,0.03344354,39792.0,39760.0,4.2109]
[1610181344520,0.00770481,39791.0,39760.0,4.2109]
[1610181344719,0.00770481,39791.0,39770.0,4.1817]
[1610181344921,0.00770481,39791.0,39770.0,4.27851]
[1610181345122,0.03344354,39792.0,39771.0,0.00023266]
[1610181345921,0.03344354,39792.0,39791.0,0.13632608]
[1610181348025,0.03344354,39792.0,39791.0,0.13655865]
[1610181348424,0.0076942,39822.0,39791.0,0.13632608]
[1610181348624,0.01523754,39823.0,39791.0,0.13632608]
[1610181348625,0.01523754,39823.0,39797.0,3.598]
[1610181348825,0.02291378,39826.0,39797.0,3.598]
[1610181349024,0.0152256,39826.0,39797.0,3.598]
[1610181349226,0.01522386,39836.0,39798.0,0.00023249]
[1610181349428,0.45234466,39837.0,39798.0,0.10102249]
[1610181349627,0.00767831,39840.0,39798.0,0.10102249]
[1610181349827,0.00767812,39843.0,39839.0,0.13632608]
[1610181350428,0.00767774,39846.0,39839.0,0.13632608]
[1610181350830,0.00766926,39845.0,39839.0,0.13632608]
[1610181351029,0.0228576,39843.0,39839.0,0.13632608]
[1610181351430,0.00766348,39842.0,39803.0,2.8542]
[1610181351627,0.00766348,39842.0,39798.0,0.10079]
[1610181351828,0.00766358,39841.0,39809.0,4.0707]
[1610181352028,0.00766358,39841.0,39840.0,0.13632608]
[1610181352229,0.02284027,39843.0,39840.0,0.13632608]
[1610181352430,0.02284027,39843.0,39840.0,0.20852608]
[1610181352631,0.00765747,39847.0,39840.0,0.20852608]
[1610181353032,0.00765747,39853.0,39840.0,0.20852608]
[1610181353531,0.00764968,39856.0,39840.0,0.20852608]
[1610181353731,0.00764968,39856.0,39840.0,0.0722]
[1610181353933,0.13632608,39842.0,39840.0,0.0722]
[1610181354131,0.13632608,39842.0,39827.0,0.13632608]
[1610181355334,0.12186113,39849.0,39827.0,0.13632608]
[1610181355536,0.00763752,39848.0,39827.0,0.13632608]
[1610181355938,0.09908,39849.0,39847.0,0.13632608]
[1610181356337,0.09908,39849.0,39830.0,3.1808]
[1610181357937,0.09908,39849.0,39848.0,0.13632608]
[1610181359438,0.13632608,39851.0,39848.0,0.13632608]
[1610181360039,0.13632608,39851.0,39827.0,0.11803]
[1610181360439,0.13632608,39851.0,39816.0,0.08676]
[1610181360638,0.13632608,39851.0,39801.0,3.24]
[1610181361243,0.00761128,39844.0,39801.0,3.24]
[1610181361441,0.09352128,39844.0,39801.0,3.24]
[1610181361642,0.00760878,39843.0,39801.0,3.24]
[1610181362041,0.13632608,39831.0,39825.0,0.13632608]
[1610181362240,0.23273608,39831.0,39825.0,0.13632608]
[1610181363851,0.09641,39831.0,39825.0,0.13632608]
[1610181364046,0.09641,39831.0,39830.0,0.13632608]
[1610181365047,0.09641,39831.0,39801.0,3.24]
[1610181366046,0.13632608,39828.0,39815.0,0.13632608]
[1610181367448,0.09641,39831.0,39801.0,3.24]
[1610181367649,0.5757,39843.0,39801.0,3.24]
[1610181368048,0.13632608,39828.0,39820.0,0.13632608]
[1610181368449,0.21698608,39828.0,39801.0,3.24]
[1610181369050,0.21698608,39828.0,39733.0,1.5]
[1610181369249,0.21698608,39828.0,39798.0,4.0104]
[1610181369451,0.21698608,39828.0,39733.0,1.5]
[1610181369649,0.21698608,39828.0,39774.0,4.1799]
[1610181370050,0.00030664,39827.0,39818.0,0.13632608]
[1610181370251,0.08066,39828.0,39818.0,0.13632608]
[1610181372152,0.08066,39828.0,39827.0,0.13632608]
[1610181372552,0.13632608,39841.0,39827.0,0.13632608]
[1610181373254,0.00030651,39840.0,39827.0,0.13632608]
[1610181374054,0.13632608,39836.0,39831.0,0.13632608]
[1610181374453,0.00030651,39835.0,39831.0,0.13632608]
[1610181375056,0.00030646,39842.0,39831.0,0.13632608]
[1610181375254,0.00030646,39834.0,39831.0,0.13632608]
[1610181375653,0.00030646,39841.0,39831.0,0.13632608]
[1610181375855,0.5757,39843.0,39831.0,0.13632608]
[1610181376054,0.5757,39843.0,39842.0,0.13632608]
[1610181376459,0.57600645,39843.0,39842.0,0.13632608]
[1610181376957,0.57600645,39843.0,39842.0,0.13479392]
[1610181381066,0.5757,39843.0,39825.0,0.10632]
[1610181381263,0.5757,39843.0,39810.0,3.30437]
[1610181381465,0.00796671,39842.0,39826.0,0.00023272]
[1610181381665,0.03861947,39842.0,39811.0,0.00023274]
[1610181381866,0.02283085,39840.0,39810.0,3.30437]
[1610181382064,0.13632608,39832.0,39817.0,0.13632608]
[1610181382664,0.00030656,39831.0,39818.0,0.00023276]
[1610181386070,0.00030656,39831.0,39822.0,0.13632608]
[1610181386670,0.00030656,39831.0,39823.0,0.00023276]
[1610181387970,0.13632608,39832.0,39823.0,0.00023276]
[1610181388172,0.13632608,39824.0,39823.0,0.00023276]
[1610181390877,0.02292342,39831.0,39823.0,0.00023276]
[1610181391277,0.0076912,39832.0,39823.0,0.00023276]
[1610181391576,0.00769395,39833.0,39823.0,0.00023276]
[1610181392077,0.00769395,39833.0,39828.0,0.13632608]
[1610181392477,0.02293712,39832.0,39829.0,0.00023276]
[1610181392776,0.02293739,39833.0,39829.0,0.00023276]
[1610181393177,0.00769625,39832.0,39829.0,0.00023276]
[1610181393578,0.00769987,39830.0,39829.0,0.00023276]
[1610181393979,0.00769987,39830.0,39819.0,0.00023276]
[1610181394179,0.00769987,39830.0,39829.0,0.13655884]
[1610181394578,0.02295231,39833.0,39829.0,0.13655884]
[1610181394980,0.66456005,39839.0,39829.0,0.13655884]
[1610181394981,0.02295165,39839.0,39830.0,0.0002327]
[1610181395379,0.0077004,39841.0,39830.0,0.0002327]
[1610181395578,0.0077004,39841.0,39830.0,0.01432842]
[1610181395780,0.0077032,39842.0,39830.0,0.01432842]
[1610181395979,0.02295826,39844.0,39830.0,0.01432842]
[1610181396380,0.01525516,39844.0,39843.0,0.13632608]
[1610181396780,0.00770739,39844.0,39843.0,0.13655873]
[1610181397585,0.01526366,39845.0,39843.0,0.13655873]
[1610181397784,0.0152752,39844.0,39843.0,0.13655873]
[1610181397984,0.00771318,39844.0,39843.0,0.13655873]
[1610181398386,0.45428914,39844.0,39843.0,0.13655873]
[1610181398786,0.46957841,39844.0,39843.0,0.13655873]
[1610181399388,0.45428914,39844.0,39843.0,0.13655873]
[1610181400091,0.99988755,39844.0,39843.0,0.13655873]
[1610181400689,0.99988755,39844.0,39843.0,0.00023265]
[1610181401090,1.66720532,39844.0,39843.0,0.00023265]
[1610181401289,1.66720532,39844.0,39830.0,0.00023275]
[1610181401490,2.42612203,39844.0,39843.0,0.00023275]
[1610181401890,0.01532788,39832.0,39831.0,0.00023277]
[1610181402091,0.54647815,39832.0,39829.0,0.10676]
[1610181402292,0.54647815,39832.0,39831.0,0.13655886]
[1610181402501,0.54684369,39833.0,39831.0,0.13632608]
[1610181402692,0.54684369,39833.0,39830.0,0.00023278]
[1610181402891,0.66788401,39836.0,39832.0,0.00023278]
[1610181403091,0.66788401,39836.0,39831.0,0.00023278]
[1610181403292,0.66788401,39836.0,39819.0,0.01411961]
[1610181403293,1.00251746,39833.0,39819.0,0.01411961]
[1610181403692,0.00775016,39829.0,39819.0,0.01435237]
[1610181404193,0.00774984,39831.0,39819.0,0.01435237]
[1610181404393,0.45651897,39831.0,39830.0,0.13632608]
[1610181404797,0.01536396,39831.0,39830.0,0.13632608]
[1610181404994,0.01536396,39831.0,39830.0,0.13655882]
[1610181405293,0.00775802,39831.0,39830.0,0.13655882]
[1610181405694,0.02313388,39831.0,39830.0,0.13655882]
[1610181405994,0.02313388,39831.0,39830.0,0.15067568]
[1610181406196,0.00776387,39832.0,39830.0,0.15067568]
[1610181406597,0.47999738,39833.0,39830.0,0.15067568]
[1610181406796,0.01537551,39833.0,39831.0,0.01434809]
[1610181406997,0.48041941,39833.0,39831.0,0.10540809]
[1610181407197,0.0749,39832.0,39831.0,0.10540809]
[1610181407400,0.48066787,39835.0,39832.0,0.01434678]
[1610181407596,0.00777484,39835.0,39832.0,0.01434678]
[1610181407799,0.48052029,39840.0,39832.0,0.01434678]
[1610181407996,0.02316495,39840.0,39832.0,0.01434678]
[1610181408396,0.02316495,39840.0,39839.0,0.13632608]
[1610181408597,0.48048902,39849.0,39839.0,0.13632608]
[1610181408997,0.4803582,39850.0,39839.0,0.26191542]
[1610181409198,0.4803582,39850.0,39840.0,0.0143392]
[1610181409397,0.45720106,39850.0,39840.0,0.0143392]
[1610181409799,0.48008931,39853.0,39840.0,0.0143392]
[1610181410202,0.48008931,39853.0,39841.0,3.0454]
[1610181410398,0.48008651,39854.0,39844.0,0.13632608]
[1610181410799,0.0231291,39857.0,39844.0,0.15066283]
[1610181411198,0.02312696,39861.0,39844.0,0.15066283]
[1610181411599,0.02310768,39863.0,39844.0,0.15066283]
[1610181411900,0.00775323,39863.0,39844.0,0.15066283]
[1610181412101,0.00775323,39863.0,39844.0,0.13655865]
[1610181412299,0.00775323,39863.0,39862.0,0.13632608]
[1610181412699,0.00774697,39865.0,39862.0,0.13632608]
[1610181412898,0.00774697,39865.0,39862.0,0.13655862]
[1610181413100,0.15941478,39866.0,39862.0,0.13655862]
[1610181413501,0.15941478,39866.0,39863.0,0.00023254]
[1610181413702,0.13632608,39866.0,39863.0,0.00023254]
[1610181414905,0.13632608,39866.0,39851.0,0.00023252]
[1610181415106,0.2856,39867.0,39851.0,0.53563252]
[1610181415504,0.2856,39867.0,39852.0,0.00023252]
[1610181415704,0.2856,39867.0,39855.0,3.6026]
[1610181415904,0.2856,39867.0,39852.0,0.00023252]
[1610181416104,0.2856,39867.0,39855.0,3.1239]
[1610181416504,0.2856,39867.0,39866.0,0.13632608]
[1610181416905,0.2856,39867.0,39866.0,0.1365586]
[1610181417104,0.2856,39867.0,39866.0,0.13632608]
[1610181418107,0.2856,39867.0,39866.0,0.13655859]
[1610181420911,0.40792608,39879.0,39866.0,0.13655859]
[1610181421110,0.2716,39879.0,39866.0,0.13655859]
[1610181421312,0.2716,39879.0,39867.0,0.00023247]
[1610181421513,0.03300156,39883.0,39867.0,0.00023247]